fUST/lending_fUST_20241205
["ID","MTS","AMOUNT","RATE_DAILY","PERIOD"]
[344319039,1733341853203,-151.0,0.00026575,7]
[344319040,1733341853212,-151.0,0.00026575,7]
[344319041,1733341853223,-151.0,0.00026575,7]
[344319042,1733341853237,-151.0,0.00026575,7]
[344319043,1733341853247,-500.0,0.00026575,7]
[344319044,1733341853258,-500.0,0.00026575,7]
[344319045,1733341853268,-500.0,0.00026575,7]
[344319046,1733341853279,-1063.46,0.00026575,7]
[344319047,1733341853289,-515.62,0.00026575,7]
[344319048,1733341853303,-151.0,0.00026575,7]
[344319049,1733341853316,-500.0,0.00026575,7]
[344319050,1733341853327,-500.0,0.00026575,7]
[344319051,1733341853337,-161.371762,0.00026575,7]
[344319052,1733341853346,-500.0,0.00026575,7]
[344319053,1733341853356,-151.0,0.00026575,7]
[344319054,1733341853366,-221.205219,0.00026575,7]
[344319055,1733341853376,-221.205219,0.00026575,7]
[344319056,1733341853386,-836.24,0.00026575,7]
[344319057,1733341853397,-500.0,0.00026575,7]
[344319058,1733341853407,-500.0,0.00026575,7]
[344319059,1733341853417,-664.4,0.00026575,7]
[344319060,1733341853427,-500.0,0.00026575,7]
[344319061,1733341853438,-3701.31,0.00026575,7]
[344319062,1733341853448,-1236.06,0.00026575,7]
[344319063,1733341853458,-500.0,0.00026575,7]
[344319064,1733341853468,-332.255729,0.00026575,7]
[344319065,1733341853478,-332.255729,0.00026575,7]
[344319066,1733341853488,-747.98,0.00026575,7]
[344319067,1733341853498,-765.137913,0.00026575,7]
[344319068,1733341853508,-500.0,0.00026575,7]
[344319069,1733341853519,-765.137913,0.00026575,7]
[344319070,1733341853529,-500.0,0.00026575,7]
[344319071,1733341853539,-500.0,0.00026575,7]
[344319072,1733341853554,-925.25,0.00026575,7]
[344319073,1733341853564,-500.0,0.00026575,7]
[344319074,1733341853574,-500.0,0.00026575,7]
[344319075,1733341853584,-519.53,0.00026575,7]
[344319076,1733341853594,-666.33,0.00026575,7]
[344319077,1733341853604,-151.0,0.00026575,7]
[344319078,1733341853615,-500.0,0.00026575,7]
[344319079,1733341853624,-153.24935818,0.00026575,7]
[344319080,1733341853635,-500.0,0.00026575,7]
[344319081,1733341853646,-529.16,0.00026575,7]
[344319082,1733341853657,-541.65,0.00026575,7]
[344319083,1733341853668,-575.26,0.00026575,7]
[344319084,1733341853679,-500.0,0.00026575,7]
[344319085,1733341853690,-1549.28,0.00026575,7]
[344319086,1733341853701,-500.0,0.00026575,7]
[344319087,1733341853712,-506.66,0.00026575,7]
[344319088,1733341853723,-511.14,0.00026575,7]
[344319089,1733341853734,-500.0,0.00026575,7]
[344319090,1733341853745,-500.0,0.00026575,7]
[344319091,1733341853756,-1334.87,0.00026575,7]
[344319092,1733341853766,-500.0,0.00026575,7]
[344319093,1733341853778,-500.0,0.00026575,7]
[344319094,1733341853789,-522.47,0.00026575,7]
[344319095,1733341853801,-6370.88,0.00026575,7]
[344319096,1733341853812,-2026.84,0.00026575,7]
[344319097,1733341853822,-506.44,0.00026575,7]
[344319098,1733341853832,-500.0,0.00026575,7]
[344319099,1733341853842,-649.08,0.00026575,7]
[344319100,1733341853852,-151.0,0.00026603,7]
[344319101,1733341853862,-151.0,0.00026603,7]
[344319102,1733341853872,-151.0,0.00026603,7]
[344319103,1733341853883,-200.194478,0.00026603,7]
[344319104,1733341853894,-477.84455106,0.000267,2]
[344319105,1733341853909,-4354.75404336,0.000267,2]
[344319106,1733341853921,-151.71,0.0002671,3]
[344319107,1733341853937,-157.644442,0.000268,18]
[344319108,1733341853948,-527.8,0.00026814,15]
[344319109,1733341853958,-151.0,0.00026849,7]
[344319110,1733341853968,-151.0,0.00026849,7]
[344319111,1733341853979,-220.613464,0.00026849,7]
[344319112,1733341853988,-220.613464,0.00026849,7]
[344319113,1733341853999,-157.691295,0.00026849,7]
[344319114,1733341854010,-157.691295,0.00026849,7]
[344319115,1733341854020,-312.274661,0.00026849,7]
[344319116,1733341854031,-500.0,0.00026849,7]
[344319117,1733341854041,-500.0,0.00026849,7]
[344319118,1733341854059,-500.0,0.00026849,7]
[344319119,1733341854069,-1063.46,0.00026849,7]
[344319120,1733341854079,-515.62,0.00026849,7]
[344319121,1733341854089,-643.030246,0.00026849,7]
[344319122,1733341854099,-643.030246,0.00026849,7]
[344319123,1733341854109,-500.0,0.00026849,7]
[344319124,1733341854119,-500.0,0.00026849,7]
[344319125,1733341854130,-500.0,0.00026849,7]
[344319126,1733341854140,-836.24,0.00026849,7]
[344319127,1733341854150,-500.0,0.00026849,7]
[344319128,1733341854159,-500.0,0.00026849,7]
[344319129,1733341854169,-664.4,0.00026849,7]
[344319130,1733341854179,-500.0,0.00026849,7]
[344319131,1733341854189,-3701.31,0.00026849,7]
[344319132,1733341854200,-1236.06,0.00026849,7]
[344319133,1733341854210,-500.0,0.00026849,7]
[344319134,1733341854221,-151.0,0.00026849,7]
[344319135,1733341854234,-151.0,0.00026849,7]
[344319136,1733341854244,-747.98,0.00026849,7]
[344319137,1733341854255,-500.0,0.00026849,7]
[344319138,1733341854267,-500.0,0.00026849,7]
[344319139,1733341854277,-500.0,0.00026849,7]
[344319140,1733341854288,-925.25,0.00026849,7]
[344319141,1733341854300,-914.310394,0.00026849,7]
[344319142,1733341854311,-914.310394,0.00026849,7]
[344319143,1733341854322,-343.160903,0.00026849,7]
[344319144,1733341854332,-343.160903,0.00026849,7]
[344319145,1733341854343,-500.0,0.00026849,7]
[344319146,1733341854354,-500.0,0.00026849,7]
[344319147,1733341854364,-519.53,0.00026849,7]
[344319148,1733341854374,-666.33,0.00026849,7]
[344319149,1733341854385,-500.0,0.00026849,7]
[344319150,1733341854396,-500.0,0.00026849,7]
[344319151,1733341854406,-529.16,0.00026849,7]
[344319152,1733341854417,-541.65,0.00026849,7]
[344319153,1733341854427,-575.26,0.00026849,7]
[344319154,1733341854439,-1441.686751,0.00026849,7]
[344319155,1733341854451,-500.0,0.00026849,7]
[344319156,1733341854463,-1549.28,0.00026849,7]
[344319157,1733341854599,-1441.686751,0.00026849,7]
[344319158,1733341854609,-500.0,0.00026849,7]
[344319159,1733341854619,-506.66,0.00026849,7]
[344319160,1733341854629,-511.14,0.00026849,7]
[344319161,1733341854639,-500.0,0.00026849,7]
[344319162,1733341854649,-500.0,0.00026849,7]
[344319163,1733341854659,-1334.87,0.00026849,7]
[344319164,1733341854668,-500.0,0.00026849,7]
[344319165,1733341854678,-500.0,0.00026849,7]
[344319166,1733341854688,-522.47,0.00026849,7]
[344319167,1733341854698,-6370.88,0.00026849,7]
[344319168,1733341854708,-2026.84,0.00026849,7]
[344319169,1733341854721,-506.44,0.00026849,7]
[344319170,1733341854731,-541.02974818,0.00026849,7]
[344319171,1733341854741,-649.08,0.00026849,7]
[344319172,1733341854751,-288.103226,0.000269,7]
[344319173,1733341854761,-2665.51284203,0.000269,2]
[344319174,1733341854771,-330.142824,0.00026921,2]
[344319175,1733341854780,-500.96367657,0.00026973,2]
[344319176,1733341854790,-560.37054687,0.00026973,2]
[344319177,1733341854805,-504.05093245,0.00026973,2]
[344319178,1733341854814,-500.0,0.00026973,2]
[344319179,1733341854824,-500.0,0.00026973,2]
[344319180,1733341854834,-150389.06344969,0.00027,2]
[344319181,1733341862671,-500.0,0.0002758,120]
[344319182,1733341862693,-500.0,0.0002758,120]
[344319183,1733341862714,-500.0,0.0002758,120]
[344319184,1733341862735,-497.9,0.0002758,120]
[344319185,1733341862800,-150.5,0.0002927,120]
[344319186,1733341862824,-150.5,0.0002928,120]
[344319187,1733341862845,-150.5,0.0002929,120]
[344319188,1733341862869,-214.395,0.0002929,120]
[344319189,1733341862894,-150.5,0.00029832,120]
[344319190,1733341862915,-150.5,0.00029842,120]
[344319191,1733341862937,-33.105,0.00029852,120]
[344319192,1733341863059,-117.395,0.00029852,120]
[344319193,1733341863085,-57.605,0.0003,120]
[344319194,1733341863163,-201.607095,0.0003,120]
[344319195,1733341863246,-740.787905,0.0003,120]
[344319196,1733341863271,-151.0,0.0003,120]
[344319197,1733341863295,-151.0,0.0003,120]
[344319199,1733341970119,150.5,0.00029234,120]
[344319200,1733341970608,108.712095,0.00029224,120]
[344319201,1733341970630,48.337905,0.00029224,120]
[344319203,1733342135951,172.65938,0.00013973,2]
[344319207,1733342901724,305.947479,0.00013973,2]
[344319221,1733342960165,-1169.27083333,0.0002,2]
[344319222,1733342960187,-41.87880756,0.00020447,2]
[344319251,1733343033919,316.557095,0.0002929,120]
[344319258,1733343034663,-877.55305,0.0002,2]
[344319259,1733343034676,-291.71778333,0.0002,2]
[344319260,1733343034687,-149.45057667,0.00020447,2]
[344319278,1733343038206,-114.61809477,0.00020447,2]
[344319279,1733343038216,-312.0,0.00022,2]
[344319281,1733343038226,-160.0,0.00022,2]
[344319282,1733343038236,-312.0,0.00022192,2]
[344319283,1733343038245,-1137.5886957,0.00022638,11]
[344319284,1733343038255,-22.04566577,0.00022748,2]
[344319285,1733343038268,-209.85277423,0.00022748,2]
[344319286,1733343038278,-290.14951352,0.00022909,2]
[344319330,1733343043405,-9.85048648,0.00022909,2]
[344319331,1733343043415,-2340.76830844,0.0002291,2]
[344319332,1733343043427,-1281.67095511,0.0002291,2]
[344319333,1733343043617,-18806.24654178,0.0002291,2]
[344319360,1733343046071,-2471.31419467,0.0002291,2]
[344319362,1733343046081,-160.0,0.00023014,2]
[344319363,1733343046090,-186.029196,0.00023562,2]
[344319364,1733343046100,-557.86744689,0.00024556,2]
[344319365,1733343046110,-225.77,0.00024647,3]
[344319366,1733343046119,-225.77,0.00024647,3]
[344319367,1733343046128,-177.5,0.00024647,3]
[344319368,1733343046138,-998.50224663,0.00024656,2]
[344319369,1733343046148,-200.0,0.00024656,2]
[344319370,1733343046157,-544.66122196,0.00024656,2]
[344319371,1733343046167,-500.0,0.00024656,2]
[344319372,1733343046179,-500.0,0.00024656,2]
[344319373,1733343046188,-500.0,0.00024656,2]
[344319374,1733343046197,-443.28465679,0.00024656,2]
[344319375,1733343046213,-56.71534321,0.00024656,2]
[344319376,1733343046222,-500.0,0.00024656,2]
[344319377,1733343046232,-500.0,0.00024656,2]
[344319379,1733343046242,-500.0,0.00024656,2]
[344319380,1733343046252,-536.85976572,0.00024656,2]
[344319381,1733343046262,-500.0,0.00024656,2]
[344319382,1733343046271,-408.28754253,0.00024656,2]
[344319383,1733343046284,-91.71245747,0.00024656,2]
[344319384,1733343046293,-500.0,0.00024656,2]
[344319385,1733343046305,-644.6809867,0.00024656,2]
[344319386,1733343046314,-500.0,0.00024656,2]
[344319387,1733343046323,-500.0,0.00024656,2]
[344319388,1733343046332,-500.0,0.00024656,2]
[344319389,1733343046342,-500.0,0.00024656,2]
[344319390,1733343046351,-500.0,0.00024656,2]
[344319391,1733343046360,-300.0,0.00024656,2]
[344319392,1733343046369,-500.0,0.00024657,7]
[344319393,1733343046379,-327.85655583,0.00024657,7]
[344319395,1733343147222,-318.67270043,0.0002,7]
[344319396,1733343176909,-355.0,0.00022,2]
[344319397,1733343176931,-213.58451149,0.00022092,2]
[344319399,1733343250017,-355.0,0.00022192,2]
[344319400,1733343250039,-1169.27083333,0.00022411,2]
[344319402,1733343324696,-355.0,0.00023014,2]
[344319406,1733343657564,300.0,0.00027,30]
[344319409,1733343746695,283.412872,0.00013973,2]
[344319414,1733344016199,156.72292975,0.00027,30]
[344319419,1733344129436,8721.95714089,0.00026,30]
[344319420,1733344148143,-300.0,0.00019989,2]
[344319421,1733344148165,-300.0,0.00019989,2]
[344319422,1733344148186,-266.381299,0.0001999,2]
[344319501,1733344235326,-300.0,0.00019989,2]
[344319502,1733344235337,-300.0,0.00019989,2]
[344319503,1733344235350,-14802.60167281,0.0001999,2]
[344319504,1733344235361,-1169.27083333,0.0002,2]
[344319505,1733344235372,-7312.34401832,0.0002,2]
[344319506,1733344235383,-352.1182618,0.0002,2]
[344319507,1733344235393,-607.72096,0.00020377,2]
[344319508,1733344235404,-283.412872,0.00020447,2]
[344319509,1733344235414,-647.4569053,0.00020551,15]
[344319510,1733344235424,-4983.36233799,0.0002061,2]
[344319511,1733344235435,-431.07388267,0.0002066,7]
[344319512,1733344235445,-420.0,0.00021766,2]
[344319513,1733344235456,-420.0,0.00021988,2]
[344319514,1733344235467,-164.47048404,0.00022,2]
[344319515,1733344235477,-221.0,0.00022,2]
[344319516,1733344235488,-161.0,0.00022,2]
[344319517,1733344235497,-816.34064707,0.00022,3]
[344319518,1733344235508,-221.0,0.00022192,2]
[344319519,1733344235518,-591.9463911,0.00022372,2]
[344319520,1733344235529,-142.28214558,0.00023014,2]
[344319521,1733344235620,-78.71785442,0.00023014,2]
[344319522,1733344235630,-191.140566,0.00023379,2]
[344319523,1733344235640,-182.29,0.00023456,2]
[344319524,1733344235650,-5221.57900853,0.00023465,2]
[344319525,1733344236566,-12737.54994932,0.00023465,2]
[344319526,1733344236576,-13853.0973759,0.00023466,2]
[344319560,1733344238690,-11046.9026241,0.00023466,2]
[344319562,1733344238701,-204.858561,0.00023562,2]
[344319563,1733344238712,-587.0,0.00023701,2]
[344319564,1733344238722,-228.0,0.00024164,2]
[344319565,1733344238732,-5935.91417948,0.00024168,2]
[344319566,1733344238743,-587.0,0.00024187,2]
[344319567,1733344238753,-180.388548,0.00024197,2]
[344319568,1733344238763,-176.01027604,0.00024557,2]
[344319569,1733344238773,-476.29,0.00024641,3]
[344319570,1733344238783,-238.15,0.00024641,3]
[344319571,1733344238792,-714.46,0.00024641,3]
[344319572,1733344238802,-500.0,0.00024651,2]
[344319573,1733344238812,-200.0,0.00024651,2]
[344319574,1733344238830,-585.64044279,0.00024651,2]
[344319575,1733344238847,-500.0,0.00024651,2]
[344319576,1733344238861,-500.0,0.00024651,2]
[344319577,1733344238876,-500.0,0.00024651,2]
[344319578,1733344238891,-500.0,0.00024651,2]
[344319579,1733344238905,-500.0,0.00024651,2]
[344319580,1733344238917,-500.0,0.00024651,2]
[344319581,1733344238930,-356.8139681,0.00024651,2]
[344319582,1733344238950,-500.0,0.00024651,2]
[344319583,1733344238965,-500.0,0.00024651,2]
[344319584,1733344238978,-500.0,0.00024651,2]
[344319585,1733344238993,-500.0,0.00024651,2]
[344319586,1733344239007,-500.0,0.00024651,2]
[344319587,1733344239021,-500.0,0.00024651,2]
[344319588,1733344239035,-549.98340671,0.00024651,2]
[344319589,1733344239049,-500.0,0.00024651,2]
[344319590,1733344239062,-500.0,0.00024651,2]
[344319591,1733344239075,-500.0,0.00024651,2]
[344319592,1733344239089,-500.0,0.00024651,2]
[344319593,1733344239105,-500.0,0.00024651,2]
[344319594,1733344239118,-500.0,0.00024651,2]
[344319595,1733344239131,-157.16125774,0.00024651,2]
[344319596,1733344239143,-500.0,0.00024651,2]
[344319597,1733344239162,-500.0,0.00024651,2]
[344319598,1733344239176,-500.0,0.00024651,2]
[344319599,1733344239190,-500.0,0.00024651,2]
[344319600,1733344239203,-500.0,0.00024651,2]
[344319601,1733344239216,-500.0,0.00024651,2]
[344319602,1733344239230,-642.74023282,0.00024651,2]
[344319603,1733344239241,-500.0,0.00024651,2]
[344319604,1733344239254,-500.0,0.00024651,2]
[344319605,1733344239265,-500.0,0.00024651,2]
[344319606,1733344239275,-500.0,0.00024651,2]
[344319607,1733344239286,-500.0,0.00024651,2]
[344319608,1733344239298,-500.0,0.00024651,2]
[344319609,1733344239310,-500.0,0.00024651,2]
[344319610,1733344239321,-500.0,0.00024651,2]
[344319611,1733344239333,-500.0,0.00024651,2]
[344319612,1733344239348,-500.0,0.00024651,2]
[344319613,1733344239359,-500.0,0.00024651,2]
[344319614,1733344239373,-500.0,0.00024651,2]
[344319615,1733344239386,-500.0,0.00024651,2]
[344319616,1733344239399,-500.0,0.00024651,2]
[344319617,1733344239412,-500.0,0.00024651,2]
[344319618,1733344239426,-500.0,0.00024651,2]
[344319619,1733344239440,-500.0,0.00024651,2]
[344319620,1733344239453,-500.0,0.00024651,2]
[344319621,1733344239468,-500.0,0.00024651,2]
[344319622,1733344239479,-500.0,0.00024651,2]
[344319623,1733344239490,-500.0,0.00024651,2]
[344319624,1733344239501,-500.0,0.00024651,2]
[344319625,1733344239512,-500.0,0.00024651,2]
[344319626,1733344239523,-500.0,0.00024651,2]
[344319627,1733344239535,-500.0,0.00024651,2]
[344319628,1733344239549,-500.0,0.00024651,2]
[344319629,1733344239563,-500.0,0.00024651,2]
[344319630,1733344239576,-500.0,0.00024651,2]
[344319631,1733344239589,-500.0,0.00024651,2]
[344319632,1733344239605,-500.0,0.00024651,2]
[344319633,1733344239617,-500.0,0.00024651,2]
[344319634,1733344239627,-500.0,0.00024651,2]
[344319635,1733344239639,-500.0,0.00024651,2]
[344319636,1733344239651,-500.0,0.00024651,2]
[344319637,1733344239662,-500.0,0.00024651,2]
[344319638,1733344239676,-500.0,0.00024651,2]
[344319639,1733344239689,-500.0,0.00024651,2]
[344319641,1733344239700,-500.0,0.00024651,2]
[344319643,1733344239712,-500.0,0.00024651,2]
[344319645,1733344239723,-500.0,0.00024651,2]
[344319647,1733344239735,-500.0,0.00024651,2]
[344319648,1733344239746,-500.0,0.00024651,2]
[344319649,1733344239757,-300.0,0.00024651,2]
[344319651,1733344239768,-1000.13383267,0.00024652,2]
[344319653,1733344239780,-1169.27083333,0.00024657,7]
[344319654,1733344239791,-1169.27083333,0.00024657,7]
[344319655,1733344239802,-1169.27083333,0.00024657,7]
[344319656,1733344239819,-1169.27083333,0.00024657,7]
[344319658,1733344239833,-1169.27083333,0.00024657,7]
[344319660,1733344239848,-1169.27083333,0.00024657,7]
[344319661,1733344239860,-1169.27083333,0.00024657,7]
[344319662,1733344239872,-1169.27083333,0.00024657,7]
[344319663,1733344239884,-1169.27083333,0.00024657,7]
[344319664,1733344239895,-500.0,0.00024657,7]
[344319665,1733344239908,-1169.27083333,0.00024657,7]
[344319666,1733344239920,-1169.27083333,0.00024657,7]
[344319667,1733344239933,-1169.27083333,0.00024657,7]
[344319668,1733344239947,-500.0,0.00024657,7]
[344319669,1733344239962,-500.0,0.00024657,7]
[344319670,1733344239974,-563.2,0.00024657,7]
[344319671,1733344239986,-350.0111919,0.00024657,7]
[344319672,1733344239999,-500.0,0.00024657,7]
[344319673,1733344240011,-500.0,0.00024657,7]
[344319674,1733344240023,-500.0,0.00024657,7]
[344319675,1733344240036,-203.2708152,0.00024657,7]
[344319676,1733344240048,-500.0,0.00024657,7]
[344319677,1733344240060,-500.0,0.00024657,7]
[344319678,1733344240072,-500.0,0.00024657,7]
[344319679,1733344240083,-500.0,0.00024657,7]
[344319680,1733344240096,-459.38534077,0.00024657,7]
[344319681,1733344240107,-200.0,0.00024657,7]
[344319682,1733344240119,-500.0,0.00024657,7]
[344319683,1733344240130,-500.0,0.00024657,7]
[344319684,1733344240142,-500.0,0.00024657,7]
[344319685,1733344240153,-279.55595572,0.00024657,7]
[344319687,1733344240165,-500.0,0.00024657,7]
[344319689,1733344240177,-500.0,0.00024657,7]
[344319690,1733344240189,-500.0,0.00024657,7]
[344319691,1733344240201,-500.0,0.00024657,7]
[344319692,1733344240213,-500.0,0.00024657,7]
[344319694,1733344240224,-500.0,0.00024657,7]
[344319696,1733344240236,-500.0,0.00024657,7]
[344319697,1733344240247,-500.0,0.00024657,7]
[344319698,1733344240259,-500.0,0.00024657,7]
[344319699,1733344240270,-500.0,0.00024657,7]
[344319700,1733344240282,-500.0,0.00024657,7]
[344319702,1733344240295,-500.0,0.00024657,7]
[344319704,1733344240306,-500.0,0.00024657,7]
[344319706,1733344240317,-402.60774985,0.00024657,7]
[344319707,1733344240327,-500.0,0.00024657,7]
[344319708,1733344240339,-500.0,0.00024657,7]
[344319710,1733344240353,-500.0,0.00024657,7]
[344319712,1733344240364,-500.0,0.00024657,7]
[344319713,1733344240376,-1169.27083333,0.00024657,7]
[344319714,1733344240387,-1169.27083333,0.00024657,7]
[344319715,1733344240399,-500.0,0.00024657,7]
[344319717,1733344240410,-1169.27083333,0.00024657,7]
[344319718,1733344240422,-500.0,0.00024657,7]
[344319719,1733344240435,-171.93255698,0.00024657,7]
[344319720,1733344240447,-500.0,0.00024657,7]
[344319721,1733344240460,-500.0,0.00024657,7]
[344319722,1733344240472,-510.54,0.00024657,7]
[344319723,1733344240483,-500.0,0.00024657,7]
[344319724,1733344240495,-500.0,0.00024657,7]
[344319725,1733344240507,-500.0,0.00024657,7]
[344319726,1733344240518,-500.0,0.00024657,7]
[344319727,1733344240703,-500.0,0.00024657,7]
[344319728,1733344240722,-500.0,0.00024657,7]
[344319729,1733344240732,-221.83011099,0.00024657,7]
[344319730,1733344240742,-500.0,0.00024657,7]
[344319731,1733344240753,-500.0,0.00024657,7]
[344319732,1733344240763,-500.0,0.00024657,7]
[344319733,1733344240773,-500.0,0.00024657,7]
[344319734,1733344240783,-500.0,0.00024657,7]
[344319735,1733344240792,-455.67593396,0.00024657,7]
[344319736,1733344240803,-500.0,0.00024657,7]
[344319737,1733344240813,-450.81770983,0.00024657,7]
[344319738,1733344240822,-500.0,0.00024657,7]
[344319739,1733344240832,-500.0,0.00024657,7]
[344319740,1733344240842,-552.47,0.00024657,7]
[344319741,1733344240857,-501.18802263,0.00024657,7]
[344319742,1733344240867,-500.0,0.00024657,7]
[344319743,1733344240877,-500.0,0.00024657,7]
[344319744,1733344240887,-500.0,0.00024657,7]
[344319745,1733344240897,-500.0,0.00024657,7]
[344319746,1733344240907,-536.5666801,0.00024657,7]
[344319747,1733344240917,-500.0,0.00024657,7]
[344319748,1733344240926,-493.48970524,0.00024657,7]
[344319749,1733344240936,-500.0,0.00024657,7]
[344319750,1733344240947,-503.59067072,0.00024657,7]
[344319751,1733344240959,-500.0,0.00024657,7]
[344319752,1733344240969,-500.0,0.00024657,7]
[344319753,1733344240979,-500.0,0.00024657,7]
[344319754,1733344240988,-500.0,0.00024657,7]
[344319755,1733344240999,-500.0,0.00024657,7]
[344319756,1733344241008,-500.0,0.00024657,7]
[344319757,1733344241018,-500.0,0.00024657,7]
[344319758,1733344241028,-205.08149688,0.00024657,7]
[344319759,1733344241040,-500.0,0.00024657,7]
[344319760,1733344241051,-500.0,0.00024657,7]
[344319761,1733344241060,-500.0,0.00024657,7]
[344319762,1733344241070,-500.0,0.00024657,7]
[344319763,1733344241080,-500.0,0.00024657,7]
[344319764,1733344241089,-500.0,0.00024657,7]
[344319765,1733344241103,-1163.05,0.00024657,7]
[344319766,1733344241112,-454.13204462,0.00024657,7]
[344319767,1733344241123,-500.0,0.00024657,7]
[344319768,1733344241132,-500.0,0.00024657,7]
[344319769,1733344241141,-500.0,0.00024657,7]
[344319770,1733344241150,-503.87,0.00024657,7]
[344319771,1733344241159,-500.0,0.00024657,7]
[344319772,1733344241168,-500.0,0.00024657,7]
[344319773,1733344241178,-500.0,0.00024657,7]
[344319774,1733344241187,-500.0,0.00024657,7]
[344319775,1733344241197,-537.7,0.00024657,7]
[344319776,1733344241206,-500.0,0.00024657,7]
[344319777,1733344241215,-500.0,0.00024657,7]
[344319778,1733344241225,-500.0,0.00024657,7]
[344319779,1733344241235,-388.9342835,0.00024657,7]
[344319780,1733344241245,-502.28818074,0.00024657,7]
[344319781,1733344241254,-500.0,0.00024657,7]
[344319782,1733344241264,-500.0,0.00024657,7]
[344319783,1733344241274,-542.14174841,0.00024657,7]
[344319784,1733344241284,-500.0,0.00024657,7]
[344319785,1733344241294,-500.0,0.00024657,7]
[344319786,1733344241303,-500.0,0.00024657,7]
[344319787,1733344241313,-500.0,0.00024657,7]
[344319788,1733344241323,-500.0,0.00024657,7]
[344319789,1733344241332,-500.0,0.00024657,7]
[344319790,1733344241342,-500.0,0.00024657,7]
[344319791,1733344241356,-500.0,0.00024657,7]
[344319792,1733344241365,-500.0,0.00024657,7]
[344319793,1733344241375,-500.0,0.00024657,7]
[344319794,1733344241385,-500.0,0.00024657,7]
[344319795,1733344241394,-500.0,0.00024657,7]
[344319796,1733344241403,-500.0,0.00024657,7]
[344319797,1733344241413,-500.0,0.00024657,7]
[344319798,1733344241423,-500.0,0.00024657,7]
[344319799,1733344241432,-500.0,0.00024657,7]
[344319800,1733344241443,-500.0,0.00024657,7]
[344319801,1733344241453,-500.0,0.00024657,7]
[344319802,1733344241463,-500.0,0.00024657,7]
[344319803,1733344241473,-500.0,0.00024657,7]
[344319804,1733344241483,-500.0,0.00024657,7]
[344319805,1733344241492,-500.0,0.00024657,7]
[344319806,1733344241502,-500.0,0.00024657,7]
[344319807,1733344241512,-500.0,0.00024657,7]
[344319808,1733344241521,-500.0,0.00024657,7]
[344319809,1733344241531,-500.0,0.00024657,7]
[344319810,1733344241541,-500.0,0.00024657,7]
[344319811,1733344241551,-1169.27083333,0.00024657,7]
[344319812,1733344241560,-500.0,0.00024657,7]
[344319813,1733344241571,-1169.27083333,0.00024657,7]
[344319814,1733344241580,-1169.27083333,0.00024657,7]
[344319815,1733344241590,-500.0,0.00024657,7]
[344319816,1733344241603,-500.0,0.00024657,7]
[344319817,1733344241613,-500.0,0.00024657,7]
[344319818,1733344241622,-500.0,0.00024657,7]
[344319819,1733344241631,-500.0,0.00024657,7]
[344319820,1733344241641,-283.05168028,0.00024657,7]
[344319821,1733344241652,-865.38,0.00024657,7]
[344319822,1733344241661,-500.0,0.00024657,7]
[344319823,1733344241671,-500.0,0.00024657,7]
[344319824,1733344241680,-500.0,0.00024657,7]
[344319825,1733344241690,-500.0,0.00024657,7]